bitfinex/quotes_SOLUSD_20250305
["timestamp","ask_amount","ask_price","bid_price","bid_amount"]
[1741182151569,0.03,144.35,144.34,6.928]
[1741182151763,2.03,144.35,144.34,6.928]
[1741182152289,2.03,144.35,144.33,6.9283]
[1741182152791,0.03,144.35,144.33,39.28837237]
[1741182153081,0.03,144.35,144.34,312.0]
[1741182153287,0.03,144.35,144.34,318.928]
[1741182153781,0.03,144.35,144.34,351.57239551]
[1741182153961,0.03,144.35,144.34,319.21232314]
[1741182157089,0.03,144.35,144.34,318.928]
[1741182157782,0.03,144.35,144.29,17.325]
[1741182157783,2.03,144.35,144.29,17.325]
[1741182158090,2.0,144.32,144.3,39.29007237]
[1741182158774,2.0,144.31,144.28,10.43249995]
[1741182158983,2.0,144.31,144.29,32.36007237]
[1741182159170,0.03,144.35,144.28,10.43249995]
[1741182159171,2.0,144.32,144.3,32.36007237]
[1741182159378,2.0,144.33,144.32,6.929]
[1741182159569,2.0,144.34,144.32,39.28907237]
[1741182159781,0.03,144.35,144.33,32.64439551]
[1741182160093,0.03,144.35,144.34,32.64439551]
[1741182160270,0.03,144.35,144.34,32.36007237]
[1741182160597,0.03,144.35,144.33,32.64439551]
[1741182160892,0.03,144.35,144.34,344.64439551]
[1741182161066,0.03,144.35,144.34,312.0]
[1741182161266,2.03,144.35,144.34,312.0]
[1741182161587,0.03,144.35,144.34,318.928]
[1741182161973,0.03,144.35,144.34,312.0]
[1741182162176,0.03,144.35,144.34,318.928]
[1741182162374,0.03,144.35,144.34,312.0]
[1741182162568,2.03,144.35,144.34,312.0]
[1741182162763,2.03,144.35,144.34,318.928]
[1741182162968,2.03,144.35,144.31,32.36007237]
[1741182162969,2.0,144.34,144.31,32.36007237]
[1741182163680,2.0,144.33,144.28,3.53459995]
[1741182163891,2.0,144.31,144.28,35.89467232]
[1741182164187,2.0,144.29,144.28,0.033]
[1741182166077,2.0,144.29,144.28,312.033]
[1741182168476,2.0,144.29,144.28,0.033]
[1741182171176,2.0,144.29,144.19,13.276]
[1741182171177,3.386,144.29,144.19,0.033]
[1741182171382,2.0,144.2,144.19,312.033]
[1741182171781,2.0,144.21,144.19,318.9682]
[1741182172076,2.0,144.2,144.19,0.033]
[1741182174173,2.0,144.21,144.19,0.31732314]
[1741182174374,2.0,144.23,144.2,32.36007237]
[1741182174900,2.0,144.23,144.21,0.28432314]
[1741182175084,2.0,144.24,144.22,344.64439551]
[1741182175281,2.0,144.24,144.22,312.0]
[1741182175494,2.0,144.25,144.22,312.28432314]
[1741182175697,2.0,144.26,144.23,0.28432314]
[1741182175894,2.0,144.25,144.22,32.36007237]
[1741182176107,2.0,144.24,144.21,35.82046152]
[1741182176276,2.0,144.24,144.21,42.75426152]
[1741182176596,2.0,144.25,144.22,32.64439551]
[1741182176800,2.0,144.24,144.21,42.75426152]
[1741182176987,2.0,144.23,144.21,6.9338]
[1741182177507,2.0,144.26,144.22,32.64439551]
[1741182177721,2.0,144.27,144.25,0.28432314]
[1741182178001,2.0,144.28,144.25,0.28432314]
[1741182178589,2.0,144.28,144.27,312.0]
[1741182178793,2.03,144.29,144.27,312.0]
[1741182179313,2.03,144.29,144.27,0.28432314]
[1741182179483,2.03,144.29,144.27,32.64439551]
[1741182180202,0.03,144.29,144.28,32.64439551]
[1741182181101,2.03,144.29,144.26,40.28767237]
[1741182181285,2.0,144.27,144.24,3.54829742]
[1741182181606,2.0,144.27,144.24,0.28432314]
[1741182181991,2.0,144.27,144.24,32.64439551]
[1741182182302,2.0,144.27,144.26,312.0]
[1741182182887,2.03,144.29,144.26,312.0]
[1741182183203,2.0,144.28,144.26,312.0]
[1741182183498,2.0,144.27,144.26,312.0]
[1741182183895,2.0,144.28,144.26,312.0]
[1741182184406,2.0,144.27,144.26,312.0]
[1741182184785,2.0,144.28,144.26,312.0]
[1741182185206,2.0,144.27,144.26,312.0]
[1741182186210,1.3862,144.28,144.27,0.28432314]
[1741182186211,2.0,144.28,144.27,0.28432314]
[1741182186990,2.0,144.28,144.25,32.39307237]
[1741182187208,2.0,144.27,144.25,36.10036301]
[1741182187402,2.0,144.27,144.25,43.03266301]
[1741182187609,2.0,144.28,144.26,32.64439551]
[1741182187907,2.03,144.29,144.27,32.36007237]
[1741182189098,2.03,144.29,144.26,32.64439551]
[1741182189288,2.03,144.29,144.28,312.0]
[1741182190400,2.03,144.29,144.28,319.21522314]
[1741182190587,2.03,144.29,144.28,312.28432314]
[1741182193090,2.03,144.29,144.28,312.0]
[1741182193290,2.0,144.27,144.26,0.28432314]
[1741182194097,2.0,144.27,144.25,0.033]
[1741182194098,2.0,144.26,144.25,0.033]
[1741182194690,2.0,144.27,144.25,39.32547237]
[1741182195211,2.0,144.27,144.25,32.39307237]
[1741182195413,2.0,144.27,144.25,0.033]
[1741182195727,2.0,144.28,144.26,32.64439551]
[1741182195926,2.03,144.29,144.27,32.36007237]
[1741182196131,2.0,144.28,144.27,0.28432314]
[1741182196417,2.03,144.29,144.28,0.28432314]
[1741182197003,2.0,144.26,144.25,0.033]
[1741182197403,2.0,144.26,144.25,0.31732314]
[1741182197736,2.0,144.27,144.25,39.60979551]
[1741182198823,2.0,144.28,144.27,0.28432314]
[1741182199222,2.0,144.28,144.27,0.31732314]
[1741182199658,2.03,144.29,144.27,7.24872314]
[1741182199811,2.03,144.29,144.28,312.28432314]
[1741182200418,2.03,144.29,144.28,344.64439551]
[1741182200919,0.03,144.29,144.28,312.28432314]
[1741182201125,2.03,144.29,144.28,312.28432314]
[1741182202520,2.03,144.29,144.28,319.21522314]
[1741182202722,2.03,144.29,144.28,351.57529551]
[1741182203023,2.03,144.29,144.28,39.57529551]
[1741182203322,2.03,144.29,144.27,0.033]
[1741182203542,2.0,144.28,144.27,0.033]
[1741182204626,2.03,144.29,144.28,0.28432314]
[1741182205022,2.03,144.29,144.27,32.39307237]
[1741182205023,2.0,144.28,144.27,0.033]
[1741182205936,2.0,144.28,144.27,312.033]
[1741182206115,3.3861,144.28,144.27,0.033]
[1741182207323,2.0,144.26,144.25,0.033]
[1741182207730,22.0,144.26,144.25,0.033]
[1741182208133,22.0,144.26,144.25,0.0001]
[1741182208352,42.03594886,144.26,144.25,0.0001]
[1741182208546,25.3863,144.26,144.25,0.0001]
[1741182209050,30.18607343,144.26,144.25,0.0001]
[1741182209825,2.0,144.2,144.16,0.28432314]
[1741182211049,2.0,144.2,144.16,7.22092314]
[1741182211344,2.0,144.2,144.16,0.28432314]
[1741182211678,2.0,144.2,144.16,7.22092314]
[1741182212227,2.0,144.2,144.16,319.22092314]
[1741182212739,2.0,144.2,144.16,312.0]
[1741182212740,3.3869,144.2,144.16,312.0]
[1741182213854,2.0,144.2,144.16,318.9365]
[1741182215058,2.0,144.2,144.17,0.28432314]
[1741182215428,2.0,144.2,144.19,0.31732314]
[1741182215949,2.0,144.21,144.19,32.67739551]
[1741182216259,2.0,144.23,144.21,0.28432314]
[1741182216435,2.0,144.25,144.23,0.28432314]
[1741182216746,2.0,144.24,144.23,0.28432314]
[1741182217264,0.03,144.29,144.23,0.28432314]
[1741182217265,2.0,144.25,144.23,0.28432314]
[1741182217860,2.0,144.26,144.25,0.28432314]
[1741182218074,2.0,144.28,144.25,344.64439551]
[1741182218371,2.0,144.28,144.27,32.64439551]
[1741182218533,2.0,144.26,144.25,0.28432314]
[1741182218736,2.0,144.25,144.21,6.9343]
[1741182218970,2.0,144.23,144.22,0.14216157]
[1741182219136,2.0,144.22,144.2,8.3227]
[1741182219458,2.0,144.22,144.19,42.87511403]
[1741182219459,2.0,144.2,144.19,0.033]
[1741182219859,2.0,144.2,144.19,6.9682]
[1741182220240,2.0,144.2,144.19,0.31732314]
[1741182220560,2.0,144.2,144.19,0.033]
[1741182221747,3.3869,144.2,144.19,0.033]
[1741182222051,2.0,144.2,144.19,0.033]
[1741182222255,3.3869,144.2,144.19,0.033]
[1741182223452,3.3869,144.2,144.14,0.033]
[1741182223453,2.0,144.15,144.14,0.033]
[1741182224555,2.0,144.15,144.12,0.033]
[1741182224556,3.3876,144.13,144.12,0.033]
[1741182225368,2.0,144.05,144.04,0.033]
[1741182226437,22.0,144.05,144.04,0.033]
[1741182226645,23.3884,144.05,144.04,0.033]
[1741182226936,2.0,144.05,144.04,0.033]
[1741182228144,23.3884,144.05,144.04,0.033]
[1741182228355,3.3884,144.05,144.04,0.033]
[1741182228663,2.0,144.05,144.04,0.033]
[1741182232166,3.3884,144.05,144.04,0.033]
[1741182232662,2.0,144.05,144.04,0.033]
[1741182233489,3.3884,144.05,144.04,0.033]
[1741182234290,2.0,144.05,144.04,0.033]
[1741182234790,2.0,144.05,144.04,39.61989551]
[1741182234957,2.0,144.06,144.05,0.28432314]
[1741182235382,2.0,144.06,144.05,32.64439551]
[1741182235748,2.0,144.06,144.05,344.64439551]
[1741182236148,2.0,144.06,144.05,312.28432314]
[1741182236378,2.0,144.07,144.05,312.28432314]
[1741182236684,2.0,144.05,144.04,0.033]
[1741182238783,3.3884,144.05,144.04,0.033]
[1741182238953,2.0,144.05,144.04,0.033]
[1741182239157,3.3884,144.05,144.04,0.033]
[1741182239890,23.3884,144.05,144.04,0.033]
[1741182240055,2.0,144.05,144.04,0.033]
[1741182240258,3.3884,144.05,144.04,0.033]
[1741182240790,2.0,144.05,144.04,0.033]
[1741182241189,3.3884,144.05,144.04,0.033]
[1741182241498,2.0,144.05,144.04,0.033]
[1741182243175,3.3884,144.05,144.04,0.033]
[1741182243394,2.0,144.05,144.04,0.033]
[1741182243587,2.0,144.05,144.04,312.033]
[1741182244278,3.3884,144.05,144.04,0.033]
[1741182244739,3.3884,144.05,143.87,58.42]
[1741182244740,2.0,143.88,143.86,10.42178823]
[1741182245003,2.0,143.9,143.87,32.36007237]
[1741182245370,2.0,143.9,143.89,32.64439551]
[1741182245575,2.0,143.9,143.89,32.36007237]
[1741182245799,2.0,143.95,143.91,18.64964886]
[1741182245994,2.0,143.96,143.95,0.28432314]
[1741182246305,2.0,143.96,143.95,32.64439551]
[1741182246477,2.0,143.98,143.95,32.64439551]
[1741182246802,2.0,143.98,143.97,32.36007237]
[1741182247509,2.0,143.95,143.94,13.1567]
[1741182247710,2.0,143.98,143.95,0.28432314]
[1741182247877,2.0,143.98,143.95,32.64439551]
[1741182248194,2.0,143.93,143.9,52.42737237]
[1741182248399,2.0,143.91,143.9,20.0673]
[1741182248610,2.0,143.9,143.86,20.7885]
[1741182248795,2.0,143.88,143.86,53.14857237]
[1741182248998,2.0,143.88,143.87,0.28432314]
[1741182249301,2.0,143.87,143.86,0.033]
[1741182251390,3.3901,143.87,143.86,0.033]
[1741182251595,2.0,143.87,143.86,0.033]
[1741182252101,5.3901,143.87,143.86,0.033]
[1741182252489,22.0,143.85,143.84,1.8275155]
[1741182252788,2.0,143.81,143.8,0.3]
[1741182253010,3.3907,143.81,143.8,0.3]
[1741182253311,23.3907,143.81,143.8,0.3]
[1741182253484,2.0,143.81,143.8,0.3]
[1741182253686,2.0,143.81,143.8,312.3]
[1741182254206,2.0,143.81,143.8,313.154324]
[1741182254385,2.0,143.81,143.8,1.154324]
[1741182254586,2.0,143.81,143.8,1.43864714]
[1741182255015,2.0,143.81,143.8,8.39274714]
[1741182255213,2.0,143.81,143.8,1.154324]
[1741182256098,2.0,143.85,143.81,0.28432314]
[1741182256806,2.0,143.84,143.81,32.64439551]
[1741182257393,2.0,143.84,143.83,312.28432314]
[1741182257595,2.0,143.85,143.84,0.28432314]
[1741182257794,2.0,143.86,143.84,32.64439551]
[1741182258003,2.0,143.89,143.86,0.28432314]
[1741182258205,2.0,143.89,143.87,32.36007237]
[1741182258410,2.0,143.9,143.87,32.36007237]
[1741182258609,2.0,143.89,143.87,32.36007237]
[1741182259114,2.0,143.89,143.88,0.28432314]
[1741182259294,2.0,143.89,143.88,7.23452314]
[1741182259620,2.0,143.9,143.88,39.59459551]
[1741182260007,2.0,143.89,143.88,7.23452314]
[1741182260202,2.0,143.85,143.84,6.9521]
[1741182260397,2.0,143.85,143.84,0.14216157]
[1741182260597,2.0,143.84,143.83,14.8776]
[1741182260818,2.0,143.84,143.83,7.9251]
[1741182261010,2.0,143.84,143.83,312.0]
[1741182261216,2.0,143.84,143.83,312.28432314]
[1741182261520,2.0,143.85,143.83,372.13981457]
[1741182261698,2.0,143.85,143.84,52.90289143]
[1741182261901,2.0,143.85,143.83,60.13981457]
[1741182262116,2.0,143.83,143.82,59.85589143]
[1741182262318,2.0,143.83,143.82,0.28432314]
[1741182262627,2.0,143.83,143.82,52.90289143]
[1741182262822,2.0,143.84,143.82,53.18721457]
[1741182263015,2.0,143.84,143.83,0.28432314]
[1741182263398,2.0,143.84,143.83,7.23692314]
[1741182263626,1.82421782,143.95,143.83,7.23692314]
[1741182263627,2.0,143.85,143.83,7.23692314]
[1741182263799,2.0,143.85,143.84,53.18721457]
[1741182264121,2.0,143.86,143.85,0.28432314]
[1741182264302,2.0,143.82,143.8,21.245924]
[1741182264497,2.0,143.82,143.8,74.14881543]
[1741182264703,2.0,143.82,143.81,364.90289143]
[1741182264905,2.0,143.82,143.81,365.18721457]
[1741182265107,2.0,143.83,143.82,0.28432314]
[1741182265321,2.0,143.83,143.82,53.18721457]
[1741182265819,2.0,143.83,143.81,7.09556157]
[1741182266020,2.0,143.81,143.8,1.187324]
[1741182266829,2.0,143.81,143.8,54.09021543]
[1741182267134,3.4502822,143.98,143.83,0.28432314]
[1741182267135,2.0,143.87,143.83,0.28432314]
[1741182267313,2.0,143.87,143.86,53.18721457]
[1741182267821,2.0,143.87,143.86,60.13841457]
[1741182267999,2.0,143.87,143.86,0.28432314]
[1741182268201,2.0,143.87,143.86,312.28432314]
[1741182268403,2.0,143.87,143.86,312.0]
[1741182269735,2.0,143.87,143.86,319.23552314]
[1741182269928,2.0,143.87,143.86,372.13841457]
[1741182270807,2.0,143.87,143.86,319.23552314]
[1741182271125,2.0,143.87,143.86,312.28432314]
[1741182271306,2.0,143.87,143.86,312.0]
[1741182272529,2.0,143.87,143.86,318.9512]
[1741182272839,2.03,143.87,143.86,372.13841457]
[1741182273327,2.03,143.87,143.86,312.0]
[1741182273811,3.4201,143.87,143.86,312.0]
[1741182274010,2.03,143.87,143.86,312.0]
[1741182274212,3.4201,143.87,143.86,312.0]
[1741182274831,2.03,143.87,143.86,312.0]
[1741182275425,3.4201,143.87,143.86,312.0]
[1741182276708,6.94170977,143.87,143.86,312.0]
[1741182276907,6.94170977,143.87,143.86,0.28432314]
[1741182277235,6.94170977,143.87,143.84,221.83864714]
[1741182277236,2.0,143.85,143.84,221.83864714]
[1741182277840,2.0,143.86,143.85,0.28432314]
[1741182278007,2.0,143.86,143.85,60.13881457]
[1741182278410,2.0,143.86,143.85,0.28432314]
[1741182278933,0.03,143.87,143.84,136.05721543]
[1741182278934,2.0,143.85,143.84,0.854324]
[1741182279144,2.0,143.85,143.84,1.13864714]
[1741182279442,2.0,143.85,143.84,0.99648557]
[1741182279613,2.0,143.85,143.84,0.854324]
[1741182280127,3.3903,143.85,143.84,0.854324]
[1741182280510,3.3903,143.85,143.84,2.4e-05]
[1741182281116,8.31386182,143.85,143.84,2.4e-05]
[1741182283619,6.92356182,143.85,143.84,2.4e-05]
[1741182284718,6.92356182,143.85,143.84,273.88723857]
[1741182284921,6.92356182,143.85,143.84,220.98434714]
[1741182285355,6.92356182,143.85,143.84,221.01734714]
[1741182285723,4.92356182,143.85,143.84,221.01734714]
[1741182286041,6.92356182,143.85,143.84,221.01734714]
[1741182286219,3.3903,143.85,143.84,0.033024]
[1741182286627,3.3903,143.85,143.84,312.033024]
[1741182286932,22.0,143.85,143.84,0.033024]
[1741182287129,2.0,143.81,143.8,0.333]
[1741182288424,3.3907,143.81,143.8,0.333]
[1741182288847,2.0,143.81,143.8,0.333]
[1741182289153,8.33841817,143.81,143.8,0.333]
[1741182290432,11.81521817,143.81,143.77,312.0]
[1741182290742,11.81521817,143.81,143.74,0.71924024]
[1741182290743,2.0,143.75,143.74,0.71924024]
[1741182291522,2.0,143.75,143.74,312.71924024]
[1741182292047,2.0,143.75,143.74,313.00356338]
[1741182292241,2.0,143.76,143.74,294.92627949]
[1741182292442,2.0,143.76,143.75,52.98481611]
[1741182292637,2.0,143.75,143.74,221.41924024]
[1741182292850,2.0,143.75,143.74,221.56140181]
[1741182293030,2.0,143.76,143.74,274.68837949]
[1741182293232,2.0,143.75,143.74,274.68837949]
[1741182293443,2.0,143.75,143.74,221.70356338]
[1741182293748,2.0,143.75,143.74,221.41924024]
[1741182294248,2.0,143.75,143.74,0.71924024]
[1741182294931,22.6956,143.75,143.74,0.71924024]
[1741182295138,2.0,143.72,143.71,0.033]
[1741182297133,2.0,143.72,143.58,50.0]
[1741182297134,2.0,143.57,143.55,1.8702317]
[1741182297353,20.0,143.68,143.55,1.8702317]
[1741182297354,2.0,143.58,143.55,1.8702317]
[1741182297528,2.0,143.61,143.57,52.98481611]
[1741182297728,2.0,143.61,143.59,52.98481611]
[1741182297934,2.0,143.61,143.59,138.4]
[1741182298356,2.0,143.6,143.56,157.9657]
[1741182298532,2.0,143.6,143.58,52.98481611]
[1741182298739,2.0,143.61,143.59,52.98481611]
[1741182299051,2.0,143.61,143.59,273.68481611]
[1741182299243,2.0,143.61,143.6,312.0]
[1741182300538,2.0,143.62,143.61,0.28432314]
[1741182300840,2.0,143.62,143.61,138.4]
[1741182301838,2.0,143.64,143.61,273.96913925]
[1741182302048,0.6958,143.71,143.61,273.96913925]
[1741182302049,2.0,143.65,143.63,53.26913925]
[1741182302363,2.0,143.66,143.64,52.98481611]
[1741182302557,2.0,143.66,143.65,60.23043925]
[1741182302769,2.0,143.69,143.65,280.93043925]
[1741182302940,2.0,143.69,143.68,53.26913925]
[1741182303136,2.0,143.69,143.68,220.98432314]
[1741182303347,2.0,143.73,143.71,0.28432314]
[1741182303559,2.0,143.77,143.73,0.28432314]
[1741182303760,2.0,143.77,143.75,0.28432314]
[1741182303969,2.0,143.78,143.76,53.26913925]
[1741182304266,2.0,143.78,143.76,138.4]
[1741182304437,2.0,143.78,143.77,0.28432314]
[1741182304638,10.86369234,143.8,143.77,198.62463925]
[1741182304858,10.86369234,143.8,143.79,53.26913925]
[1741182305062,10.86369234,143.8,143.79,138.68432314]
[1741182305240,12.86369234,143.8,143.79,138.68432314]
[1741182305450,10.86369234,143.8,143.79,191.66913925]
[1741182305769,2.0,143.81,143.79,191.66913925]
[1741182305966,2.0,143.81,143.8,53.26913925]
[1741182306167,2.0,143.81,143.8,0.28432314]
[1741182306462,2.0,143.79,143.77,142.52463925]
[1741182306644,0.03,143.87,143.78,60.22413925]
[1741182306645,2.0,143.81,143.78,60.22413925]
[1741182306851,2.0,143.81,143.8,53.26913925]
[1741182307162,2.0,143.81,143.8,585.96913925]
[1741182307368,2.0,143.81,143.8,532.98432314]
[1741182307565,0.03,143.87,143.8,532.98432314]
[1741182307566,2.0,143.84,143.81,0.28432314]
[1741182307768,2.0,143.84,143.82,52.98481611]
[1741182308062,2.0,143.84,143.83,52.98481611]
[1741182308247,2.0,143.84,143.83,0.28432314]
[1741182308445,2.0,143.84,143.83,273.96913925]
[1741182308753,0.03,143.87,143.83,280.92173925]
[1741182308754,2.03,143.87,143.83,280.92173925]
[1741182309061,2.03,143.87,143.86,53.26913925]
[1741182309382,2.03,143.87,143.86,273.96913925]
[1741182309550,2.03,143.87,143.86,220.98432314]
[1741182309776,0.03,143.87,143.86,273.96913925]
[1741182309971,0.03,143.87,143.86,292.61878811]
[1741182310266,2.0,143.91,143.87,0.28432314]
[1741182310463,2.0,143.91,143.9,53.26913925]
[1741182310665,2.0,143.91,143.9,503.66913925]
[1741182310874,2.0,143.91,143.9,510.61833925]
[1741182311271,2.0,143.93,143.91,0.28432314]
[1741182311454,0.7244,144.0,143.93,0.28432314]
[1741182311455,2.0,143.95,143.93,0.28432314]
[1741182311659,2.0,143.95,143.93,138.68432314]
[1741182311860,2.0,143.95,143.94,53.26913925]
[1741182312459,2.0,143.98,143.95,0.28432314]
[1741182312657,2.0,143.97,143.95,191.66913925]
[1741182312959,2.03,144.0,143.97,0.28432314]
[1741182313156,2.03,144.0,143.99,52.98481611]
[1741182313345,0.03,144.0,143.99,191.38481611]
[1741182313564,2.03,144.0,143.99,191.38481611]
[1741182313763,0.03,144.0,143.99,138.4]
[1741182313967,2.0,143.99,143.98,138.68432314]
[1741182314449,2.0,143.99,143.98,503.66913925]
[1741182314850,0.03,144.0,143.99,0.28432314]
[1741182315162,0.03,144.0,143.99,53.26913925]
[1741182316665,0.03,144.0,143.99,352.54850422]
[1741182317168,2.03,144.0,143.99,220.98432314]
[1741182317568,2.03,144.0,143.98,53.12697768]
[1741182317770,2.0,143.99,143.98,0.14216157]
[1741182317969,2.03,144.0,143.98,312.28432314]
[1741182318181,0.03,144.0,143.99,0.14216157]
[1741182318355,0.03,144.0,143.99,18.933972]
[1741182318560,0.03,144.01,143.99,239.633972]
[1741182318761,0.03,144.01,144.0,60.21353925]
[1741182318981,0.03,144.01,144.0,53.26913925]
[1741182319370,0.03,144.01,144.0,220.7]
[1741182319683,0.03,144.01,143.97,82.3]
[1741182319684,2.0,143.98,143.97,82.3]
[1741182319872,2.0,143.98,143.97,82.58432314]
[1741182320074,2.0,143.98,143.97,220.7]
[1741182320271,2.0,143.99,143.97,220.7]
[1741182320565,0.03,144.01,143.97,220.7]
[1741182320566,0.03,144.01,143.98,53.26913925]
[1741182320773,2.0,144.0,143.99,53.26913925]
[1741182320988,2.0,144.0,143.99,0.28432314]
[1741182321184,2.0,144.0,143.99,53.26913925]
[1741182321378,2.0,143.99,143.97,227.6458]
[1741182321562,2.0,143.99,143.97,280.63061611]
[1741182321879,2.0,144.0,143.98,53.26913925]
[1741182322084,2.03,144.01,144.0,0.28432314]
[1741182322789,0.03,144.01,144.0,53.26913925]
[1741182322980,2.03,144.01,144.0,0.28432314]
[1741182323488,0.03,144.01,144.0,53.26913925]
[1741182323667,0.03,144.01,144.0,273.96913925]
[1741182323860,2.03,144.01,144.0,82.3]
[1741182324064,0.03,144.01,144.0,273.96913925]
[1741182324262,0.03,144.01,144.0,135.56913925]
[1741182324484,2.03,144.01,144.0,394.58432314]
[1741182324813,2.03,144.01,144.0,532.84216157]
[1741182324986,0.03,144.01,144.0,539.92872314]
[1741182325292,0.03,144.02,144.01,0.28432314]
[1741182325457,0.03,144.02,144.01,53.26913925]
[1741182325868,0.0001,144.02,144.01,292.61878811]
[1741182326069,2.0,144.06,144.01,292.61878811]
[1741182326277,2.0,144.07,144.06,0.28432314]
[1741182326488,2.0,144.09,144.06,273.96913925]
[1741182326790,2.0,144.1,144.08,7.22442314]
[1741182326987,2.0,144.11,144.08,227.92442314]
[1741182327163,2.03,144.12,144.08,280.90923925]
[1741182327364,2.0,144.11,144.08,220.98432314]
[1741182328072,2.0,144.11,144.05,241.2398]
[1741182328274,2.0,144.1,144.08,82.3]
[1741182328589,2.0,144.11,144.1,0.28432314]
[1741182328987,2.0,144.1,144.06,138.4]
[1741182329187,2.0,144.07,144.06,138.4]
[1741182329487,2.0,144.07,144.05,220.7]
[1741182329671,2.0,144.06,144.05,220.7]
[1741182329866,2.0,144.06,144.05,220.98432314]
[1741182330381,2.0,144.06,144.05,220.7]
[1741182330576,2.0,144.06,144.05,220.98432314]
[1741182330766,2.0,144.07,144.05,280.91113925]
[1741182330966,2.0,144.06,144.05,280.91113925]
[1741182331604,2.0,144.06,144.05,220.98432314]
[1741182331983,2.0,144.06,144.05,532.98432314]
[1741182332303,2.0,144.06,144.05,532.7]
[1741182333987,2.6941,144.06,144.05,312.0]
[1741182334396,2.6941,144.06,144.01,220.7]
[1741182334782,2.0,144.02,144.01,82.3]
[1741182334984,2.0,143.99,143.98,220.7]
[1741182335396,2.0,143.99,143.98,220.98432314]
[1741182335590,2.0,143.99,143.98,220.7]
[1741182336396,2.0,143.94,143.92,138.4]
[1741182336592,2.0,143.93,143.92,82.3]
[1741182336909,2.0,143.93,143.92,220.7]
[1741182337108,1.7362,143.99,143.88,220.7]
[1741182337109,2.0,143.9,143.88,220.7]
[1741182337408,2.0,143.89,143.87,0.033]
[1741182337611,0.6947,143.93,143.87,0.033]
[1741182337612,2.0,143.88,143.87,0.033]
[1741182339689,2.0,143.89,143.87,0.033]
[1741182340196,2.0,143.88,143.87,0.033]
[1741182340397,2.0,143.88,143.87,312.033]
[1741182341908,2.0,143.88,143.87,312.31732314]
[1741182342115,2.0,143.91,143.88,0.28432314]
[1741182342411,12.6122,144.0,143.91,0.28432314]
[1741182342412,2.0,143.93,143.91,0.28432314]
[1741182342705,2.0,143.88,143.87,0.033]
[1741182342886,2.695,143.88,143.87,0.033]
[1741182343485,2.0,143.88,143.87,0.033]
[1741182344603,2.0,143.88,143.87,221.01732314]
[1741182345008,2.0,143.88,143.87,220.733]
[1741182345313,2.0,143.88,143.87,532.733]
[1741182346018,2.0,143.88,143.87,312.033]
[1741182347493,2.0,143.88,143.87,312.31732314]
[1741182347695,2.0,143.88,143.87,394.61732314]
[1741182348532,2.0,143.91,143.88,0.28432314]
[1741182348712,2.0,143.92,143.9,52.98481611]
[1741182348916,2.0,143.93,143.91,0.28432314]
[1741182349114,2.0,143.93,143.92,6.9483]
[1741182349431,2.0,143.93,143.92,145.63262314]
[1741182349596,2.0,143.93,143.92,280.91743925]
[1741182349915,2.0,143.96,143.93,0.28432314]